[Event "CCT Chessable Masters Play-In 2025"]
[Site "Online"]
[Date "2025.02.17"]
[Round "2.27"]
[White "Narayanan S L"]
[Black "Santos Latasa, Jaime"]
[Result "1/2-1/2"]
[ECO "A46"]
[WhiteElo "2622"]
[BlackElo "2631"]
[PlyCount "158"]
[EventDate "2025.02.13"]
[EventType "swiss"]
[EventCountry "NET"]
[TimeControl "600"]
[WhiteClock "0:04:44"]
[BlackClock "0:01:28"]

1. d4 {[%emt 0:00:01]} Nf6 {[%emt 0:00:02]} 2. Nf3 {[%emt 0:00:01]} e6 {[%emt 0:00:03]} 3. c3 {[%emt 0:00:01]} c5 {[%emt 0:00:03]} 4. Bg5 {[%emt 0:00:01]} h6 {[%emt 0:00:02]} 5. Bh4 {[%emt 0:00:01]} cxd4 {[%emt 0:00:03]} 6. cxd4 {[%emt 0:00:03]} Be7 {[%emt 0:00:47]} 7. Nc3 {[%emt 0:00:03]} O-O {[%emt 0:00:04]} 8. e3 {[%emt 0:00:01]} b6 {[%emt 0:00:03]} 9. Bd3 {[%emt 0:00:01]} Ba6 {[%emt 0:00:02]} 10. O-O {[%emt 0:00:06]} Bxd3 {[%emt 0:00:04]} 11. Qxd3 {[%emt 0:00:00]} Nc6 {[%emt 0:00:01]} 12. a3 {[%emt 0:00:01]} Qc8 {[%emt 0:00:20]} 13. d5 {[%emt 0:00:07]} Na5 {[%emt 0:00:35]} 14. d6 {[%emt 0:00:22]} Bd8 {[%emt 0:00:03]} 15. Rac1 {[%emt 0:00:17]} Qc4 {[%emt 0:00:23]} 16. Qd1 {[%emt 0:00:04]} Qa6 {[%emt 0:00:34]} 17. Ne5 {[%emt 0:00:07]} Qb7 {[%emt 0:00:19]} 18. b4 {[%emt 0:00:19]} Nc6 {[%emt 0:00:03]} 19. Qf3 {[%emt 0:00:04]} Ne8 {[%emt 0:00:57]} 20. Be7 {[%emt 0:00:10]} Nf6 {[%emt 0:00:21]} 21. Nxc6 {[%emt 0:00:04]} dxc6 {[%emt 0:00:03]} 22. Bxf8 {[%emt 0:00:01]} Kxf8 {[%emt 0:00:00]} 23. Rfd1 {[%emt 0:00:07]} Rc8 {[%emt 0:00:05]} 24. b5 {[%emt 0:00:03]} Qd7 {[%emt 0:00:01]} 25. a4 {[%emt 0:00:11]} cxb5 {[%emt 0:00:09]} 26. Nxb5 {[%emt 0:00:02]} Rxc1 {[%emt 0:00:02]} 27. Rxc1 {[%emt 0:00:00]} a6 {[%emt 0:00:01]} 28. Nd4 {[%emt 0:00:11]} Qxd6 {[%emt 0:00:08]} 29. Qc6 {[%emt 0:00:05]} Qa3 {[%emt 0:00:33]} 30. Rd1 {[%emt 0:00:01]} Be7 {[%emt 0:00:03]} 31. Qa8+ {[%emt 0:00:03]} Ne8 {[%emt 0:00:02]} 32. Qxa6 {[%emt 0:00:01]} Bc5 {[%emt 0:00:01]} 33. h3 {[%emt 0:00:02]} Nd6 {[%emt 0:00:10]} 34. Nb5 {[%emt 0:00:07]} Qb3 {[%emt 0:00:13]} 35. Rf1 {[%emt 0:00:03]} Nc4 {[%emt 0:00:10]} 36. Qc8+ {[%emt 0:00:10]} Ke7 {[%emt 0:00:02]} 37. Qc7+ {[%emt 0:00:00]} Kf6 {[%emt 0:00:02]} 38. Qf4+ {[%emt 0:00:01]} Kg6 {[%emt 0:00:01]} 39. Qe4+ {[%emt 0:00:03]} Kf6 {[%emt 0:00:02]} 40. Rc1 {[%emt 0:00:05]} Nxe3 {[%emt 0:00:12]} 41. Nd4 {[%emt 0:00:05]} Qb2 {[%emt 0:00:07]} 42. Qxe3 {[%emt 0:00:11]} Bxd4 {[%emt 0:00:04]} 43. Qf3+ {[%emt 0:00:00]} Kg6 {[%emt 0:00:02]} 44. Qe4+ {[%emt 0:00:04]} Kf6 {[%emt 0:00:04]} 45. Rf1 {[%emt 0:00:01]} Bc5 {[%emt 0:00:01]} 46. h4 {[%emt 0:00:05]} Qc3 {[%emt 0:00:04]} 47. Qf4+ {[%emt 0:00:05]} Ke7 {[%emt 0:00:03]} 48. Rc1 {[%emt 0:00:04]} Qb2 {[%emt 0:00:05]} 49. Rd1 {[%emt 0:00:04]} Qc2 {[%emt 0:00:03]} 50. Qd2 {[%emt 0:00:04]} Qxd2 {[%emt 0:00:15]} 51. Rxd2 {[%emt 0:00:00]} e5 {[%emt 0:00:01]} 52. Kf1 {[%emt 0:00:00]} h5 {[%emt 0:00:03]} 53. Ke2 {[%emt 0:00:03]} Ke6 {[%emt 0:00:01]} 54. Rd8 {[%emt 0:00:02]} f5 {[%emt 0:00:01]} 55. g3 {[%emt 0:00:02]} g6 {[%emt 0:00:02]} 56. Rg8 {[%emt 0:00:04]} Kf6 {[%emt 0:00:02]} 57. Rc8 {[%emt 0:00:00]} Bd4 {[%emt 0:00:01]} 58. Rc6+ {[%emt 0:00:01]} Kf7 {[%emt 0:00:01]} 59. f3 {[%emt 0:00:03]} Kg7 {[%emt 0:00:02]} 60. f4 {[%emt 0:00:05]} e4 {[%emt 0:00:03]} 61. Rc4 {[%emt 0:00:01]} Bg1 {[%emt 0:00:01]} 62. Rc1 {[%emt 0:00:07]} Bd4 {[%emt 0:00:01]} 63. Rc7+ {[%emt 0:00:05]} Kf6 {[%emt 0:00:02]} 64. Rc6+ {[%emt 0:00:00]} Kf7 {[%emt 0:00:01]} 65. Rc4 {[%emt 0:00:01]} Bg1 {[%emt 0:00:02]} 66. Rb4 {[%emt 0:00:08]} Bc5 {[%emt 0:00:02]} 67. Rb5 {[%emt 0:00:00]} Bd4 {[%emt 0:00:01]} 68. Rb1 {[%emt 0:00:05]} Bc5 {[%emt 0:00:02]} 69. Rc1 {[%emt 0:00:01]} Bd4 {[%emt 0:00:01]} 70. Rc6 {[%emt 0:00:01]} Kg7 {[%emt 0:00:06]} 71. Kf1 {[%emt 0:00:03]} Kf7 {[%emt 0:00:02]} 72. Ke1 {[%emt 0:00:02]} Bg1 {[%emt 0:00:02]} 73. Kd1 {[%emt 0:00:04]} Bf2 {[%emt 0:00:02]} 74. Kc2 {[%emt 0:00:01]} Kg7 {[%emt 0:00:05]} 75. Kc3 {[%emt 0:00:09]} Kf7 {[%emt 0:00:01]} 76. Kc4 {[%emt 0:00:02]} Kg7 {[%emt 0:00:03]} 77. Kc3 {[%emt 0:00:11]} Kf7 {[%emt 0:00:02]} 78. Kd2 {[%emt 0:00:01]} Kg7 {[%emt 0:00:01]} 79. Ke2 {[%emt 0:00:01]} Bd4 {[%emt 0:00:01]} 1/2-1/2

[Event "CCT Chessable Masters Play-In 2025"]
[Site "Online"]
[Date "2025.02.17"]
[Round "2.28"]
[White "Bluebaum, Matthias"]
[Black "Moroni, Luca Jr"]
[Result "1-0"]
[ECO "A43"]
[WhiteElo "2643"]
[BlackElo "2552"]
[PlyCount "93"]
[EventDate "2025.02.13"]
[EventType "swiss"]
[EventCountry "NET"]
[TimeControl "600"]
[WhiteClock "0:03:09"]
[BlackClock "0:00:17"]

1. d4 {[%emt 0:00:01]} g6 {[%emt 0:00:09]} 2. c4 {[%emt 0:00:01]} Bg7 {[%emt 0:00:00]} 3. e4 {[%emt 0:00:00]} d6 {[%emt 0:00:01]} 4. Nc3 {[%emt 0:00:01]} c5 {[%emt 0:00:01]} 5. d5 {[%emt 0:00:00]} Bxc3+ {[%emt 0:00:01]} 6. bxc3 {[%emt 0:00:01]} e5 {[%emt 0:00:02]} 7. dxe6 {[%emt 0:00:00]} Bxe6 {[%emt 0:00:01]} 8. Rb1 {[%emt 0:00:00]} Nc6 {[%emt 0:00:13]} 9. Bd3 {[%emt 0:00:01]} Qa5 {[%emt 0:00:11]} 10. Ne2 {[%emt 0:00:07]} Qa6 {[%emt 0:00:05]} 11. O-O {[%emt 0:00:19]} Nge7 {[%emt 0:00:09]} 12. Bg5 {[%emt 0:00:33]} O-O-O {[%emt 0:00:18]} 13. Nf4 {[%emt 0:00:50]} Bxc4 {[%emt 0:00:28]} 14. Bxc4 {[%emt 0:00:01]} Qxc4 {[%emt 0:00:01]} 15. Nd5 {[%emt 0:00:01]} Rhe8 {[%emt 0:00:29]} 16. Nf6 {[%emt 0:00:10]} Rh8 {[%emt 0:00:05]} 17. Nd5 {[%emt 0:00:03]} Rhe8 {[%emt 0:00:14]} 18. Qf3 {[%emt 0:01:01]} Nxd5 {[%emt 0:02:17]} 19. exd5 {[%emt 0:00:09]} Ne5 {[%emt 0:00:01]} 20. Qh3+ {[%emt 0:00:01]} Rd7 {[%emt 0:00:09]} 21. f4 {[%emt 0:00:11]} Nd3 {[%emt 0:01:06]} 22. Rxb7 {[%emt 0:00:05]} f5 {[%emt 0:01:21]} 23. Rxd7 {[%emt 0:00:02]} Qxc3 {[%emt 0:00:01]} 24. Bf6 {[%emt 0:01:30]} Qxf6 {[%emt 0:01:16]} 25. Qxd3 {[%emt 0:00:01]} Kxd7 {[%emt 0:00:01]} 26. Qb5+ {[%emt 0:00:00]} Kd8 {[%emt 0:00:00]} 27. Qb8+ {[%emt 0:00:01]} Kd7 {[%emt 0:00:01]} 28. Qxa7+ {[%emt 0:00:02]} Kd8 {[%emt 0:00:05]} 29. Qa8+ {[%emt 0:00:19]} Kd7 {[%emt 0:00:02]} 30. Qc6+ {[%emt 0:00:01]} Kd8 {[%emt 0:00:00]} 31. Rb1 {[%emt 0:00:00]} Qd4+ {[%emt 0:00:21]} 32. Kh1 {[%emt 0:00:01]} Qb4 {[%emt 0:00:03]} 33. Qxd6+ {[%emt 0:00:01]} Kc8 {[%emt 0:00:01]} 34. Qc6+ {[%emt 0:00:17]} Kd8 {[%emt 0:00:01]} 35. Qf6+ {[%emt 0:00:03]} Kc8 {[%emt 0:00:08]} 36. Qa6+ {[%emt 0:00:07]} Kc7 {[%emt 0:00:11]} 37. Qf1 {[%emt 0:00:16]} Qd4 {[%emt 0:00:00]} 38. Qb5 {[%emt 0:00:15]} Qb4 {[%emt 0:00:04]} 39. Qf1 {[%emt 0:00:05]} Qd4 {[%emt 0:00:01]} 40. h3 {[%emt 0:00:00]} c4 {[%emt 0:00:01]} 41. Qc1 {[%emt 0:00:06]} Re4 {[%emt 0:00:00]} 42. Qa3 {[%emt 0:00:02]} Rxf4 {[%emt 0:00:02]} 43. Qe7+ {[%emt 0:00:01]} Kc8 {[%emt 0:00:00]} 44. Qe8+ {[%emt 0:00:03]} Kc7 {[%emt 0:00:01]} 45. Qc6+ {[%emt 0:00:00]} Kd8 {[%emt 0:00:01]} 46. Rb8+ {[%emt 0:00:01]} Ke7 {[%emt 0:00:00]} 47. Qe6# {[%emt 0:00:01]} 1-0

[Event "CCT Chessable Masters Play-In 2025"]
[Site "Online"]
[Date "2025.02.17"]
[Round "2.29"]
[White "Bologan, Victor"]
[Black "Puranik, Abhimanyu"]
[Result "0-1"]
[ECO "C54"]
[WhiteElo "2603"]
[BlackElo "2636"]
[PlyCount "136"]
[EventDate "2025.02.13"]
[EventType "swiss"]
[EventCountry "NET"]
[TimeControl "600"]
[BlackClock "0:00:42"]

1. e4 {[%emt 0:00:01]} e5 {[%emt 0:00:03]} 2. Nf3 {[%emt 0:00:01]} Nc6 {[%emt 0:00:01]} 3. Bc4 {[%emt 0:00:01]} Nf6 {[%emt 0:00:02]} 4. d3 {[%emt 0:00:02]} Bc5 {[%emt 0:00:02]} 5. c3 {[%emt 0:00:02]} d6 {[%emt 0:00:01]} 6. Nbd2 {[%emt 0:00:02]} h6 {[%emt 0:00:01]} 7. h3 {[%emt 0:00:02]} a5 {[%emt 0:00:01]} 8. Nf1 {[%emt 0:00:01]} Be6 {[%emt 0:00:17]} 9. Bb5 {[%emt 0:00:06]} O-O {[%emt 0:00:02]} 10. Bxc6 {[%emt 0:00:11]} bxc6 {[%emt 0:00:01]} 11. g4 {[%emt 0:00:03]} Nh7 {[%emt 0:00:27]} 12. Ng3 {[%emt 0:00:08]} a4 {[%emt 0:00:09]} 13. Nf5 {[%emt 0:00:13]} d5 {[%emt 0:00:39]} 14. Qe2 {[%emt 0:00:03]} dxe4 {[%emt 0:00:13]} 15. dxe4 {[%emt 0:00:02]} Bc8 {[%emt 0:00:01]} 16. Be3 {[%emt 0:01:01]} Ba6 {[%emt 0:00:08]} 17. c4 {[%emt 0:00:03]} Bxe3 {[%emt 0:00:06]} 18. Qxe3 {[%emt 0:00:40]} Re8 {[%emt 0:00:23]} 19. Rd1 {[%emt 0:00:30]} Qf6 {[%emt 0:00:19]} 20. b3 {[%emt 0:00:08]} axb3 {[%emt 0:00:22]} 21. axb3 {[%emt 0:00:01]} Bc8 {[%emt 0:00:03]} 22. Ng3 {[%emt 0:00:48]} Qe7 {[%emt 0:00:11]} 23. O-O {[%emt 0:00:08]} Nf8 {[%emt 0:00:07]} 24. Nf5 {[%emt 0:00:20]} Qf6 {[%emt 0:00:13]} 25. Kg2 {[%emt 0:01:36]} Ng6 {[%emt 0:00:22]} 26. Kg3 {[%emt 0:00:04]} Ra3 {[%emt 0:00:45]} 27. Ra1 {[%emt 0:00:06]} Rxa1 {[%emt 0:00:09]} 28. Rxa1 {[%emt 0:00:03]} Bxf5 {[%emt 0:00:09]} 29. exf5 {[%emt 0:00:11]} e4 {[%emt 0:00:04]} 30. Rd1 {[%emt 0:00:04]} Nf8 {[%emt 0:00:18]} 31. Ng1 {[%emt 0:00:28]} Qb2 {[%emt 0:00:20]} 32. Ne2 {[%emt 0:00:08]} Nh7 {[%emt 0:00:06]} 33. Nf4 {[%emt 0:00:12]} Nf6 {[%emt 0:00:22]} 34. Kg2 {[%emt 0:00:15]} Rb8 {[%emt 0:00:06]} 35. Rd2 {[%emt 0:00:02]} Qb1 {[%emt 0:00:08]} 36. Qc3 {[%emt 0:00:57]} Kh7 {[%emt 0:00:03]} 37. Rb2 {[%emt 0:00:06]} Qd1 {[%emt 0:00:03]} 38. Qe3 {[%emt 0:00:04]} Ra8 {[%emt 0:00:07]} 39. Qe2 {[%emt 0:00:07]} Qd6 {[%emt 0:00:05]} 40. Qe3 {[%emt 0:00:01]} Rd8 {[%emt 0:00:06]} 41. b4 {[%emt 0:00:02]} Qe5 {[%emt 0:00:02]} 42. Rd2 {[%emt 0:00:02]} Rb8 {[%emt 0:00:08]} 43. c5 {[%emt 0:00:02]} Qa1 {[%emt 0:00:07]} 44. Qd4 {[%emt 0:00:03]} Qb1 {[%emt 0:00:04]} 45. Rb2 {[%emt 0:00:01]} Qc1 {[%emt 0:00:02]} 46. Ne2 {[%emt 0:00:02]} Qe1 {[%emt 0:00:05]} 47. Ng3 {[%emt 0:00:02]} Ra8 {[%emt 0:00:10]} 48. Qe3 {[%emt 0:00:03]} Qa1 {[%emt 0:00:03]} 49. Rd2 {[%emt 0:00:02]} Ra3 {[%emt 0:00:01]} 50. Qd4 {[%emt 0:00:01]} Qb1 {[%emt 0:00:26]} 51. Qb2 {[%emt 0:00:03]} Qxb2 {[%emt 0:00:01]} 52. Rxb2 {[%emt 0:00:02]} e3 {[%emt 0:00:01]} 53. fxe3 {[%emt 0:00:01]} Rxe3 {[%emt 0:00:01]} 54. Ra2 {[%emt 0:00:02]} Nd5 {[%emt 0:00:02]} 55. Kf2 {[%emt 0:00:05]} Rb3 {[%emt 0:00:03]} 56. Ra8 {[%emt 0:00:02]} Nxb4 {[%emt 0:00:08]} 57. Rf8 {[%emt 0:00:01]} Nd3+ {[%emt 0:00:01]} 58. Kf1 {[%emt 0:00:03]} Ne5 {[%emt 0:00:01]} 59. Nh5 {[%emt 0:00:02]} Rxh3 {[%emt 0:00:05]} 60. f6 {[%emt 0:00:02]} gxf6 {[%emt 0:00:06]} 61. Rc8 {[%emt 0:00:03]} Rc3 {[%emt 0:00:09]} 62. Nxf6+ {[%emt 0:00:04]} Kg6 {[%emt 0:00:01]} 63. Ne4 {[%emt 0:00:01]} Rc1+ {[%emt 0:00:02]} 64. Ke2 {[%emt 0:00:02]} Nxg4 {[%emt 0:00:05]} 65. Rxc7 {[%emt 0:00:02]} Kf5 {[%emt 0:00:03]} 66. Nd6+ {[%emt 0:00:01]} Ke6 {[%emt 0:00:02]} 67. Nxf7 {[%emt 0:00:02]} Rxc5 {[%emt 0:00:05]} 68. Kf3 h5 {[%emt 0:00:09]} 0-1

[Event "CCT Chessable Masters Play-In 2025"]
[Site "Online"]
[Date "2025.02.17"]
[Round "2.30"]
[White "Volokitin, Andrei"]
[Black "Anton Guijarro, David"]
[Result "0-1"]
[ECO "B12"]
[WhiteElo "2643"]
[BlackElo "2668"]
[PlyCount "82"]
[EventDate "2025.02.13"]
[EventType "swiss"]
[EventCountry "NET"]
[TimeControl "600"]
[BlackClock "0:01:59"]

1. e4 {[%emt 0:00:02]} c6 {[%emt 0:00:01]} 2. d4 {[%emt 0:00:02]} d5 {[%emt 0:00:01]} 3. e5 {[%emt 0:00:01]} Bf5 {[%emt 0:00:01]} 4. Nf3 {[%emt 0:00:02]} e6 {[%emt 0:00:00]} 5. Be2 {[%emt 0:00:01]} Ne7 {[%emt 0:00:01]} 6. c3 {[%emt 0:00:02]} Nd7 {[%emt 0:00:01]} 7. O-O {[%emt 0:00:02]} h6 {[%emt 0:00:01]} 8. Nbd2 {[%emt 0:00:01]} g5 {[%emt 0:00:03]} 9. Re1 {[%emt 0:00:04]} Bg6 {[%emt 0:00:02]} 10. Nf1 {[%emt 0:00:07]} c5 {[%emt 0:00:02]} 11. h3 {[%emt 0:00:08]} Nc6 {[%emt 0:00:06]} 12. Bd3 {[%emt 0:00:49]} Bxd3 {[%emt 0:00:04]} 13. Qxd3 {[%emt 0:00:01]} Be7 {[%emt 0:00:47]} 14. Bd2 {[%emt 0:01:09]} Qb6 {[%emt 0:00:17]} 15. Ng3 {[%emt 0:00:34]} Qxb2 {[%emt 0:00:54]} 16. Reb1 {[%emt 0:00:10]} c4 {[%emt 0:00:18]} 17. Qe2 {[%emt 0:01:43]} Qc2 {[%emt 0:00:14]} 18. Rxb7 {[%emt 0:00:10]} Nb6 {[%emt 0:00:19]} 19. Rc7 {[%emt 0:00:25]} Qa4 {[%emt 0:00:06]} 20. Nh5 {[%emt 0:00:53]} Kd8 {[%emt 0:00:16]} 21. Rxe7 {[%emt 0:00:24]} Nxe7 {[%emt 0:00:01]} 22. Ne1 {[%emt 0:00:02]} Kc7 {[%emt 0:00:15]} 23. Qf3 {[%emt 0:00:05]} Raf8 {[%emt 0:00:25]} 24. g4 {[%emt 0:00:10]} Nd7 {[%emt 0:00:13]} 25. Qe2 {[%emt 0:00:14]} Ng6 {[%emt 0:00:05]} 26. Be3 {[%emt 0:00:10]} Rb8 {[%emt 0:00:05]} 27. Bc1 {[%emt 0:00:05]} Rb7 {[%emt 0:00:38]} 28. Nc2 {[%emt 0:00:01]} Rhb8 {[%emt 0:00:01]} 29. Ba3 {[%emt 0:00:09]} Rb1+ {[%emt 0:00:10]} 30. Rxb1 {[%emt 0:00:02]} Rxb1+ {[%emt 0:00:00]} 31. Kh2 {[%emt 0:00:00]} a5 {[%emt 0:00:44]} 32. Qd2 {[%emt 0:00:06]} Nh4 {[%emt 0:00:09]} 33. Qe2 {[%emt 0:00:02]} Kc6 {[%emt 0:00:20]} 34. f4 {[%emt 0:00:04]} Ng6 {[%emt 0:00:38]} 35. fxg5 {[%emt 0:00:03]} hxg5 {[%emt 0:00:00]} 36. Qf2 {[%emt 0:00:05]} Rd1 {[%emt 0:00:04]} 37. Ne3 {[%emt 0:00:13]} Rd3 {[%emt 0:00:07]} 38. Qxf7 {[%emt 0:00:04]} Rxe3 {[%emt 0:00:02]} 39. Qxe6+ {[%emt 0:00:05]} Kb7 {[%emt 0:00:02]} 40. Qxg6 {[%emt 0:00:32]} Qd1 {[%emt 0:00:18]} 41. Nf4 gxf4 {[%emt 0:00:10]} 0-1

[Event "CCT Chessable Masters Play-In 2025"]
[Site "Online"]
[Date "2025.02.17"]
[Round "2.31"]
[White "Matinian, Nikita"]
[Black "Rustemov, Alexander"]
[Result "1/2-1/2"]
[ECO "C10"]
[WhiteElo "2415"]
[BlackElo "2525"]
[PlyCount "94"]
[EventDate "2025.02.13"]
[EventType "swiss"]
[EventCountry "NET"]
[TimeControl "600"]
[WhiteClock "0:00:27"]
[BlackClock "0:00:46"]

1. e4 {[%emt 0:00:01]} e6 {[%emt 0:00:02]} 2. d4 {[%emt 0:00:01]} d5 {[%emt 0:00:01]} 3. Nc3 {[%emt 0:00:00]} dxe4 {[%emt 0:00:01]} 4. Nxe4 {[%emt 0:00:01]} Bd7 {[%emt 0:00:01]} 5. Nf3 {[%emt 0:00:08]} Bc6 {[%emt 0:00:01]} 6. Bd3 {[%emt 0:00:07]} Nd7 {[%emt 0:00:00]} 7. O-O {[%emt 0:00:03]} Ngf6 {[%emt 0:00:01]} 8. Ned2 {[%emt 0:00:01]} Be7 {[%emt 0:00:01]} 9. b3 {[%emt 0:00:04]} b5 {[%emt 0:00:03]} 10. Bb2 {[%emt 0:00:08]} b4 {[%emt 0:00:01]} 11. Re1 {[%emt 0:00:11]} O-O {[%emt 0:00:02]} 12. Nc4 {[%emt 0:00:24]} a5 {[%emt 0:00:03]} 13. a4 {[%emt 0:00:03]} Bd5 {[%emt 0:00:09]} 14. Nfe5 {[%emt 0:00:25]} Nxe5 {[%emt 0:01:59]} 15. dxe5 {[%emt 0:00:29]} Nd7 {[%emt 0:00:02]} 16. Re3 {[%emt 0:00:02]} g6 {[%emt 0:00:15]} 17. Rh3 {[%emt 0:00:13]} Nc5 {[%emt 0:00:22]} 18. Qg4 {[%emt 0:00:37]} Nxd3 {[%emt 0:00:07]} 19. Rxd3 {[%emt 0:00:07]} h5 {[%emt 0:01:04]} 20. Qh3 {[%emt 0:02:54]} Bg5 {[%emt 0:00:02]} 21. Rf1 {[%emt 0:00:16]} Kg7 {[%emt 0:00:13]} 22. f4 {[%emt 0:00:04]} Bh6 {[%emt 0:00:30]} 23. f5 {[%emt 0:00:19]} Kh7 {[%emt 0:00:33]} 24. f6 {[%emt 0:00:27]} Rh8 {[%emt 0:00:32]} 25. Bc1 {[%emt 0:00:10]} Qf8 {[%emt 0:00:01]} 26. Bxh6 {[%emt 0:00:07]} Qxh6 {[%emt 0:00:02]} 27. Ne3 {[%emt 0:00:01]} c6 {[%emt 0:00:04]} 28. Nc4 {[%emt 0:00:18]} Bxc4 {[%emt 0:00:20]} 29. bxc4 {[%emt 0:00:01]} Rhd8 {[%emt 0:00:05]} 30. Qf3 {[%emt 0:00:28]} Rxd3 {[%emt 0:00:24]} 31. Qxd3 {[%emt 0:00:00]} Qg5 {[%emt 0:00:06]} 32. Qd7 {[%emt 0:00:25]} Kg8 {[%emt 0:00:06]} 33. Qxc6 {[%emt 0:00:07]} Qe3+ {[%emt 0:00:05]} 34. Kh1 {[%emt 0:00:01]} Rd8 {[%emt 0:00:01]} 35. Qc7 {[%emt 0:00:03]} Rf8 {[%emt 0:00:57]} 36. Qxa5 {[%emt 0:00:08]} Qe2 {[%emt 0:00:05]} 37. Rg1 {[%emt 0:00:06]} Qxc4 {[%emt 0:00:03]} 38. Qb6 {[%emt 0:00:12]} Ra8 {[%emt 0:00:11]} 39. Qe3 {[%emt 0:00:03]} Kh7 {[%emt 0:00:07]} 40. Qb3 {[%emt 0:00:03]} Qc5 {[%emt 0:00:03]} 41. Re1 {[%emt 0:00:01]} Rc8 {[%emt 0:00:05]} 42. h3 {[%emt 0:00:08]} g5 {[%emt 0:00:03]} 43. Qd3+ {[%emt 0:00:02]} Kh6 {[%emt 0:00:01]} 44. Qd7 {[%emt 0:00:01]} Kg6 {[%emt 0:00:16]} 45. Qd3+ {[%emt 0:00:02]} Kh6 {[%emt 0:00:01]} 46. Qd7 {[%emt 0:00:00]} Kg6 {[%emt 0:00:02]} 47. Qd3+ {[%emt 0:00:01]} Kh6 {[%emt 0:00:01]} 1/2-1/2

[Event "CCT Chessable Masters Play-In 2025"]
[Site "Online"]
[Date "2025.02.17"]
[Round "2.32"]
[White "Vaishali, Rameshbabu"]
[Black "Ivic, Velimir"]
[Result "0-1"]
[ECO "A25"]
[WhiteElo "2476"]
[BlackElo "2622"]
[PlyCount "184"]
[EventDate "2025.02.13"]
[EventType "swiss"]
[EventCountry "NET"]
[TimeControl "600"]
[WhiteClock "0:00:51"]
[BlackClock "0:01:54"]

1. c4 {[%emt 0:00:01]} e5 {[%emt 0:00:03]} 2. g3 {[%emt 0:00:03]} Nc6 {[%emt 0:00:01]} 3. Bg2 {[%emt 0:00:01]} g6 {[%emt 0:00:01]} 4. Nc3 {[%emt 0:00:02]} Bg7 {[%emt 0:00:00]} 5. d3 {[%emt 0:00:05]} d6 {[%emt 0:00:01]} 6. Rb1 {[%emt 0:00:02]} a5 {[%emt 0:00:04]} 7. a3 {[%emt 0:00:05]} Nge7 {[%emt 0:00:01]} 8. b4 {[%emt 0:00:05]} axb4 {[%emt 0:00:02]} 9. axb4 {[%emt 0:00:00]} Nd4 {[%emt 0:00:01]} 10. e3 {[%emt 0:00:09]} Ne6 {[%emt 0:00:01]} 11. Nge2 {[%emt 0:00:11]} O-O {[%emt 0:00:05]} 12. O-O {[%emt 0:00:08]} c6 {[%emt 0:00:04]} 13. d4 {[%emt 0:00:14]} exd4 {[%emt 0:00:12]} 14. exd4 {[%emt 0:00:00]} d5 {[%emt 0:00:12]} 15. cxd5 {[%emt 0:00:14]} Nxd5 {[%emt 0:00:08]} 16. Nxd5 {[%emt 0:00:24]} cxd5 {[%emt 0:00:00]} 17. Be3 {[%emt 0:00:10]} Nc7 {[%emt 0:00:15]} 18. b5 {[%emt 0:00:27]} Bf5 {[%emt 0:00:06]} 19. b6 {[%emt 0:00:01]} Ne6 {[%emt 0:00:04]} 20. Rb5 {[%emt 0:00:04]} Re8 {[%emt 0:01:49]} 21. Rxd5 {[%emt 0:01:41]} Qxb6 {[%emt 0:00:16]} 22. Rd7 {[%emt 0:00:41]} Nc7 {[%emt 0:00:44]} 23. Rxc7 {[%emt 0:00:09]} Qxc7 {[%emt 0:00:03]} 24. Nf4 {[%emt 0:00:05]} Be4 {[%emt 0:00:05]} 25. d5 {[%emt 0:00:30]} Bxg2 {[%emt 0:00:03]} 26. Nxg2 {[%emt 0:00:01]} b5 {[%emt 0:00:10]} 27. Nf4 {[%emt 0:00:09]} b4 {[%emt 0:00:09]} 28. d6 {[%emt 0:00:18]} Qc6 {[%emt 0:00:06]} 29. Qd5 {[%emt 0:00:06]} Qxd5 {[%emt 0:00:31]} 30. Nxd5 {[%emt 0:00:00]} Red8 {[%emt 0:00:02]} 31. Nxb4 {[%emt 0:00:43]} Rxd6 {[%emt 0:00:02]} 32. Bf4 {[%emt 0:00:00]} Rd7 {[%emt 0:00:03]} 33. Nc6 {[%emt 0:00:02]} Ra1 {[%emt 0:00:07]} 34. Rxa1 {[%emt 0:00:04]} Bxa1 {[%emt 0:00:00]} 35. Kg2 {[%emt 0:00:03]} f6 {[%emt 0:00:01]} 36. h4 {[%emt 0:00:00]} Kf7 {[%emt 0:00:01]} 37. Na5 {[%emt 0:00:02]} Bd4 {[%emt 0:00:10]} 38. Nc4 {[%emt 0:00:01]} Bc5 {[%emt 0:00:01]} 39. Nd2 {[%emt 0:00:06]} Ke6 {[%emt 0:00:02]} 40. Ne4 {[%emt 0:00:02]} Be7 {[%emt 0:00:02]} 41. Be3 {[%emt 0:00:01]} Rc7 {[%emt 0:00:04]} 42. Kf3 {[%emt 0:00:02]} Rc4 {[%emt 0:00:00]} 43. Nd2 {[%emt 0:00:02]} Rb4 {[%emt 0:00:02]} 44. Ne4 {[%emt 0:00:00]} Rc4 {[%emt 0:00:01]} 45. Nd2 {[%emt 0:00:01]} Rc2 {[%emt 0:00:02]} 46. Ne4 {[%emt 0:00:00]} h5 {[%emt 0:00:03]} 47. Kg2 {[%emt 0:00:03]} Kf5 {[%emt 0:00:01]} 48. Kf3 {[%emt 0:00:04]} Rc4 {[%emt 0:00:01]} 49. Nd2 {[%emt 0:00:01]} Rc2 {[%emt 0:00:01]} 50. Ne4 {[%emt 0:00:01]} Bb4 {[%emt 0:00:04]} 51. Bf4 {[%emt 0:00:11]} Rc4 {[%emt 0:00:06]} 52. Nd6+ {[%emt 0:00:05]} Bxd6 {[%emt 0:00:01]} 53. Bxd6 {[%emt 0:00:00]} Rc3+ {[%emt 0:00:01]} 54. Kg2 {[%emt 0:00:04]} Ke4 {[%emt 0:00:04]} 55. Be7 {[%emt 0:00:02]} Rc6 {[%emt 0:00:02]} 56. Bf8 {[%emt 0:00:06]} Re6 {[%emt 0:00:12]} 57. Bc5 {[%emt 0:00:03]} Ra6 {[%emt 0:00:05]} 58. Be3 {[%emt 0:00:01]} Ra5 {[%emt 0:00:08]} 59. Bb6 {[%emt 0:00:01]} Rd5 {[%emt 0:00:01]} 60. Be3 {[%emt 0:00:01]} Kd3 {[%emt 0:00:08]} 61. Ba7 {[%emt 0:00:01]} Ke2 {[%emt 0:00:01]} 62. Be3 {[%emt 0:00:01]} Rd3 {[%emt 0:00:05]} 63. Ba7 {[%emt 0:00:01]} Rf3 {[%emt 0:00:03]} 64. Bd4 {[%emt 0:00:01]} Rf5 {[%emt 0:00:00]} 65. Bb6 {[%emt 0:00:02]} Kd3 {[%emt 0:00:01]} 66. Be3 {[%emt 0:00:02]} Rb5 {[%emt 0:00:02]} 67. Ba7 {[%emt 0:00:00]} Re5 {[%emt 0:00:02]} 68. Bb6 {[%emt 0:00:01]} Re6 {[%emt 0:00:00]} 69. Ba7 {[%emt 0:00:02]} Ke4 {[%emt 0:00:03]} 70. Bc5 {[%emt 0:00:01]} Rc6 {[%emt 0:00:01]} 71. Ba7 {[%emt 0:00:01]} Rc3 {[%emt 0:00:01]} 72. Bb6 {[%emt 0:00:01]} f5 {[%emt 0:00:06]} 73. Bd8 {[%emt 0:00:10]} f4 {[%emt 0:00:01]} 74. gxf4 {[%emt 0:00:06]} Kxf4 {[%emt 0:00:00]} 75. Bg5+ {[%emt 0:00:00]} Kg4 {[%emt 0:00:01]} 76. Bf6 {[%emt 0:00:02]} Rf3 {[%emt 0:00:05]} 77. Bg5 {[%emt 0:00:01]} Rf5 {[%emt 0:00:01]} 78. Bd8 {[%emt 0:00:01]} Rd5 {[%emt 0:00:06]} 79. Bf6 {[%emt 0:00:01]} Kf4 {[%emt 0:00:01]} 80. Be7 {[%emt 0:00:03]} Rd3 {[%emt 0:00:05]} 81. Bg5+ {[%emt 0:00:01]} Ke4 {[%emt 0:00:01]} 82. Be7 {[%emt 0:00:01]} Rd5 {[%emt 0:00:01]} 83. Bg5 {[%emt 0:00:01]} Rxg5+ {[%emt 0:00:09]} 84. hxg5 {[%emt 0:00:00]} Kf4 {[%emt 0:00:00]} 85. f3 {[%emt 0:00:09]} Kxg5 {[%emt 0:00:01]} 86. Kg3 {[%emt 0:00:01]} Kf5 {[%emt 0:00:00]} 87. Kg2 {[%emt 0:00:04]} Kf4 {[%emt 0:00:01]} 88. Kf2 {[%emt 0:00:01]} g5 {[%emt 0:00:08]} 89. Kg2 {[%emt 0:00:03]} h4 {[%emt 0:00:01]} 90. Kf2 {[%emt 0:00:08]} h3 {[%emt 0:00:01]} 91. Kg1 {[%emt 0:00:03]} Kxf3 {[%emt 0:00:01]} 92. Kh2 {[%emt 0:00:01]} g4 {[%emt 0:00:02]} 0-1